fUSD/lending_fUSD_20260213
["ID","MTS","AMOUNT","RATE_DAILY","PERIOD"]
[405315347,1770984638397,-1500.0,9.988e-05,2]
[405315348,1770984638407,-500.0,0.0001,2]
[405315349,1770984638417,-151.0,0.0001,2]
[405315350,1770984638427,-151.0,0.0001,2]
[405315351,1770984638436,-151.0,0.0001,2]
[405315352,1770984638445,-151.0,0.0001,2]
[405315353,1770984638455,-151.0,0.0001,2]
[405315354,1770984638465,-151.0,0.0001,2]
[405315355,1770984638474,-151.0,0.0001,2]
[405315356,1770984638483,-151.0,0.0001,2]
[405315357,1770984638492,-151.0,0.0001,2]
[405315358,1770984638501,-151.0,0.0001,2]
[405315359,1770984638510,-151.0,0.0001,2]
[405315360,1770984638520,-151.0,0.0001,2]
[405315361,1770984638529,-151.0,0.0001,2]
[405315362,1770984638538,-151.0,0.0001,2]
[405315363,1770984638548,-151.0,0.0001,2]
[405315364,1770984638557,-151.0,0.0001,2]
[405315365,1770984638567,-151.0,0.0001,2]
[405315366,1770984638577,-151.0,0.0001,2]
[405315367,1770984638590,-151.0,0.0001,2]
[405315368,1770984638599,-151.0,0.0001,2]
[405315369,1770984638609,-1065.71906943,0.0001,2]
[405315370,1770984638619,-860.02590149,0.0001,2]
[405315371,1770984638631,-860.02590149,0.0001,2]
[405315372,1770984638641,-166.66,0.00010014,2]
[405315373,1770984638651,-575.56698105,0.00010055,2]
[405315374,1770984638662,-166.66,0.00010306,2]
[405315375,1770984638672,-1000.0,0.00010449,2]
[405315376,1770984638682,-1447.61473378,0.00010536,2]
[405315377,1770984638692,-250.0,0.00010794,2]
[405315378,1770984638701,-284.85282171,0.00010844,2]
[405315379,1770984638710,-3300.0,0.000109,3]
[405315380,1770984638720,-150.0,0.00010959,2]
[405315381,1770984638729,-300.0,0.00011066,7]
[405315382,1770984638739,-25834.93520342,0.00011099,2]
[405315383,1770984638748,-25834.93520336,0.00011099,2]
[405315384,1770984638758,-25834.93520336,0.00011099,2]
[405315385,1770984638767,-25834.93520336,0.00011099,2]
[405315386,1770984638777,-25834.93520336,0.00011099,2]
[405315387,1770984638787,-25834.93520336,0.00011099,2]
[405315388,1770984638796,-25834.93520336,0.00011099,2]
[405315389,1770984638806,-25834.93520336,0.00011099,2]
[405315390,1770984638816,-25834.93520336,0.00011099,2]
[405315391,1770984638826,-25834.93520336,0.00011099,2]
[405315392,1770984638836,-29200.85,0.00011131,2]
[405315393,1770984638846,-166.66,0.00011178,2]
[405315394,1770984638856,-8813.43,0.00011233,2]
[405315395,1770984638866,-166.66,0.00011288,2]
[405315396,1770984638875,-166.66,0.00011397,2]
[405315397,1770984638885,-1000.0,0.00011494,2]
[405315398,1770984638895,-166.66,0.00011507,2]
[405315399,1770984638904,-15428.07,0.00012175,2]
[405315400,1770984638914,-162.08,0.00012254,2]
[405315401,1770984638924,-150.0,0.00012465,2]
[405315402,1770984638934,-1000.0,0.00012539,2]
[405315403,1770984638944,-376.0,0.00012624,2]
[405315404,1770984638954,-370.537853,0.00012672,2]
[405315405,1770984638963,-1844.16,0.00012838,2]
[405315406,1770984638973,-1065.71906943,0.00013194,2]
[405315407,1770984638983,-225.0,0.00013445,2]
[405315408,1770984638992,-860.02590149,0.00013689,2]
[405315409,1770984639002,-500.0,0.00013698,2]
[405315410,1770984639011,-500.0,0.00013698,2]
[405315411,1770984639021,-500.0,0.00013698,2]
[405315412,1770984639030,-500.0,0.00013698,2]
[405315413,1770984639040,-500.0,0.00013698,2]
[405315414,1770984639049,-500.0,0.00013698,2]
[405315415,1770984639059,-500.0,0.00013698,2]
[405315416,1770984639069,-500.0,0.00013698,2]
[405315417,1770984639079,-500.0,0.00013698,2]
[405315418,1770984639088,-500.0,0.00013698,2]
[405315419,1770984639098,-500.0,0.00013698,2]
[405315420,1770984639107,-500.0,0.00013698,2]
[405315421,1770984639117,-500.0,0.00013698,2]
[405315422,1770984639127,-500.0,0.00013698,2]
[405315423,1770984639137,-500.0,0.00013698,2]
[405315424,1770984639147,-500.0,0.00013698,2]
[405315425,1770984639157,-500.0,0.00013698,2]
[405315426,1770984639166,-500.0,0.00013698,2]
[405315427,1770984639176,-500.0,0.00013698,2]
[405315428,1770984639186,-500.0,0.00013698,2]
[405315429,1770984639196,-500.0,0.00013698,2]
[405315430,1770984639206,-500.0,0.00013698,2]
[405315431,1770984639216,-500.0,0.00013698,2]
[405315432,1770984639226,-500.0,0.00013698,2]
[405315433,1770984639236,-500.0,0.00013698,2]
[405315434,1770984639246,-500.0,0.00013698,2]
[405315435,1770984639256,-500.0,0.00013698,2]
[405315436,1770984639266,-500.0,0.00013698,2]
[405315437,1770984639275,-500.0,0.00013698,2]
[405315438,1770984639284,-500.0,0.00013698,2]
[405315439,1770984639294,-500.0,0.00013698,2]
[405315440,1770984639303,-500.0,0.00013698,2]
[405315441,1770984639312,-321.88700258,0.00013698,2]
[405315442,1770984639322,-500.0,0.00013698,2]
[405315444,1770984639331,-500.0,0.00013698,2]
[405315446,1770984639340,-500.0,0.00013698,2]
[405315448,1770984639350,-500.0,0.00013698,2]
[405315449,1770984639359,-500.0,0.00013698,2]
[405315450,1770984639368,-500.0,0.00013698,2]
[405315451,1770984639378,-500.0,0.00013698,2]
[405315452,1770984639387,-500.0,0.00013698,2]
[405315453,1770984639397,-500.0,0.00013698,2]
[405315454,1770984639407,-500.0,0.00013698,2]
[405315455,1770984639416,-500.0,0.00013698,2]
[405315456,1770984639425,-500.0,0.00013698,2]
[405315457,1770984639435,-500.0,0.00013698,2]
[405315458,1770984639445,-500.0,0.00013698,2]
[405315459,1770984639455,-500.0,0.00013698,2]
[405315460,1770984639465,-500.0,0.00013698,2]
[405315461,1770984639475,-500.0,0.00013698,2]
[405315462,1770984639484,-500.0,0.00013698,2]
[405315463,1770984639493,-500.0,0.00013698,2]
[405315464,1770984639503,-500.0,0.00013698,2]
[405315465,1770984639514,-500.0,0.00013698,2]
[405315466,1770984639524,-275.72571045,0.00013698,2]
[405315467,1770984639534,-500.0,0.00013698,2]
[405315468,1770984639543,-500.0,0.00013698,2]
[405315469,1770984639553,-500.0,0.00013698,2]
[405315470,1770984639564,-500.0,0.00013698,2]
[405315471,1770984639575,-500.0,0.00013698,2]
[405315472,1770984639588,-500.0,0.00013698,2]
[405315473,1770984639599,-500.0,0.00013698,2]
[405315474,1770984639608,-500.0,0.00013698,2]
[405315475,1770984639620,-500.0,0.00013698,2]
[405315476,1770984639631,-500.0,0.00013698,2]
[405315477,1770984639640,-500.0,0.00013698,2]
[405315478,1770984639650,-500.0,0.00013698,2]
[405315479,1770984639661,-500.0,0.00013698,2]
[405315480,1770984639671,-500.0,0.00013698,2]
[405315481,1770984639680,-223.33486272,0.00013698,2]
[405315482,1770984639690,-606.16370174,0.00013698,2]
[405315483,1770984639700,-500.0,0.00013698,2]
[405315484,1770984639709,-500.0,0.00013698,2]
[405315485,1770984639719,-500.0,0.00013698,2]
[405315486,1770984639729,-500.0,0.00013698,2]
[405315487,1770984639738,-500.0,0.00013698,2]
[405315488,1770984639748,-500.0,0.00013698,2]
[405315489,1770984639758,-500.0,0.00013698,2]
[405315490,1770984639769,-500.0,0.00013698,2]
[405315491,1770984639778,-500.0,0.00013698,2]
[405315492,1770984639788,-500.0,0.00013698,2]
[405315493,1770984639798,-500.0,0.00013698,2]
[405315494,1770984639808,-500.0,0.00013698,2]
[405315495,1770984639819,-500.0,0.00013698,2]
[405315496,1770984639828,-500.0,0.00013698,2]
[405315497,1770984639838,-500.0,0.00013698,2]
[405315498,1770984639848,-500.0,0.00013698,2]
[405315499,1770984639859,-500.0,0.00013698,2]
[405315501,1770984639869,-500.0,0.00013698,2]
[405315502,1770984639878,-500.0,0.00013698,2]
[405315503,1770984639888,-500.0,0.00013698,2]
[405315504,1770984639897,-234.89012897,0.00013698,2]
[405315505,1770984639906,-529.06,0.00013698,2]
[405315506,1770984639917,-529.06,0.00013698,2]
[405315507,1770984639927,-529.06,0.00013698,2]
[405315508,1770984639937,-529.06,0.00013698,2]
[405315509,1770984639948,-529.06,0.00013698,2]
[405315510,1770984639958,-529.06,0.00013698,2]
[405315511,1770984639968,-529.06,0.00013698,2]
[405315512,1770984639978,-529.06,0.00013698,2]
[405315513,1770984639988,-529.06,0.00013698,2]
[405315514,1770984639999,-529.06,0.00013698,2]
[405315515,1770984640009,-529.06,0.00013698,2]
[405315516,1770984640020,-529.06,0.00013698,2]
[405315517,1770984640030,-529.06,0.00013698,2]
[405315518,1770984640039,-529.06,0.00013698,2]
[405315519,1770984640049,-529.06,0.00013698,2]
[405315520,1770984640058,-529.06,0.00013698,2]
[405315521,1770984640068,-529.06,0.00013698,2]
[405315522,1770984640077,-500.0,0.00013698,2]
[405315523,1770984640087,-500.0,0.00013698,2]
[405315524,1770984640099,-500.0,0.00013698,2]
[405315525,1770984640109,-500.0,0.00013698,2]
[405315526,1770984640120,-500.0,0.00013698,2]
[405315527,1770984640132,-500.0,0.00013698,2]
[405315528,1770984640141,-500.0,0.00013698,2]
[405315529,1770984640150,-500.0,0.00013698,2]
[405315530,1770984640159,-500.0,0.00013698,2]
[405315531,1770984640168,-500.0,0.00013698,2]
[405315532,1770984640177,-500.0,0.00013698,2]
[405315533,1770984640186,-500.0,0.00013698,2]
[405315534,1770984640195,-500.0,0.00013698,2]
[405315535,1770984640206,-500.0,0.00013698,2]
[405315536,1770984640217,-500.0,0.00013698,2]
[405315537,1770984640228,-500.0,0.00013698,2]
[405315538,1770984640238,-500.0,0.00013698,2]
[405315539,1770984640248,-500.0,0.00013698,2]
[405315540,1770984640257,-500.0,0.00013698,2]
[405315541,1770984640267,-317.069748,0.00013698,2]
[405315542,1770984640275,-500.0,0.00013698,2]
[405315543,1770984640285,-500.0,0.00013698,2]
[405315544,1770984640294,-500.0,0.00013698,2]
[405315545,1770984640304,-500.0,0.00013698,2]
[405315546,1770984640315,-500.0,0.00013698,2]
[405315547,1770984640325,-500.0,0.00013698,2]
[405315548,1770984640335,-500.0,0.00013698,2]
[405315549,1770984640344,-190.05419818,0.00013698,2]
[405315550,1770984640356,-500.0,0.00013698,2]
[405315551,1770984640366,-500.0,0.00013698,2]
[405315552,1770984640375,-500.0,0.00013698,2]
[405315553,1770984640385,-500.0,0.00013698,2]
[405315554,1770984640394,-500.0,0.00013698,2]
[405315555,1770984640404,-500.0,0.00013698,2]
[405315556,1770984640413,-500.0,0.00013698,2]
[405315557,1770984640422,-500.0,0.00013698,2]
[405315558,1770984640431,-500.0,0.00013698,2]
[405315559,1770984640441,-500.0,0.00013698,2]
[405315560,1770984640451,-500.0,0.00013698,2]
[405315561,1770984640460,-500.0,0.00013698,2]
[405315562,1770984640470,-500.0,0.00013698,2]
[405315563,1770984640480,-411.48442771,0.00013698,2]
[405315564,1770984640491,-500.0,0.00013698,2]
[405315565,1770984640501,-500.0,0.00013698,2]
[405315566,1770984640510,-500.0,0.00013698,2]
[405315567,1770984640519,-500.0,0.00013698,2]
[405315568,1770984640528,-500.0,0.00013698,2]
[405315569,1770984640537,-500.0,0.00013698,2]
[405315570,1770984640547,-500.0,0.00013698,2]
[405315571,1770984640556,-313.3815855,0.00013698,2]
[405315572,1770984640567,-500.0,0.00013698,2]
[405315573,1770984640577,-500.0,0.00013698,2]
[405315574,1770984640592,-500.0,0.00013698,2]
[405315575,1770984640602,-500.0,0.00013698,2]
[405315576,1770984640612,-500.0,0.00013698,2]
[405315577,1770984640621,-500.0,0.00013698,2]
[405315578,1770984640632,-500.0,0.00013698,2]
[405315579,1770984640642,-500.0,0.00013698,2]
[405315580,1770984640652,-500.0,0.00013698,2]
[405315581,1770984640664,-500.0,0.00013698,2]
[405315582,1770984640674,-500.0,0.00013698,2]
[405315583,1770984640683,-500.0,0.00013698,2]
[405315584,1770984640693,-152.76754888,0.00013698,2]
[405315585,1770984640703,-500.0,0.00013698,2]
[405315586,1770984640713,-500.0,0.00013698,2]
[405315587,1770984640722,-500.0,0.00013698,2]
[405315588,1770984640733,-500.0,0.00013698,2]
[405315589,1770984640743,-500.0,0.00013698,2]
[405315590,1770984640752,-500.0,0.00013698,2]
[405315591,1770984640762,-500.0,0.00013698,2]
[405315592,1770984640771,-495.54112114,0.00013698,2]
[405315593,1770984640782,-500.0,0.00013698,2]
[405315594,1770984640791,-500.0,0.00013698,2]
[405315595,1770984640802,-191.66731724,0.00013698,2]
[405315596,1770984640811,-500.0,0.00013698,2]
[405315597,1770984640820,-505.53791634,0.00013698,2]
[405315598,1770984640829,-500.0,0.00013698,2]
[405315599,1770984640839,-500.0,0.00013698,2]
[405315600,1770984640848,-500.0,0.00013698,2]
[405315601,1770984640857,-500.0,0.00013698,2]
[405315602,1770984640866,-500.0,0.00013698,2]
[405315603,1770984640876,-500.0,0.00013698,2]
[405315604,1770984640886,-500.0,0.00013698,2]
[405315605,1770984640895,-500.0,0.00013698,2]
[405315606,1770984640904,-500.0,0.00013698,2]
[405315607,1770984640913,-500.0,0.00013698,2]
[405315608,1770984640923,-294.72601554,0.00013698,2]
[405315609,1770984640932,-500.0,0.00013698,2]
[405315610,1770984640942,-500.0,0.00013698,2]
[405315611,1770984640952,-500.0,0.00013698,2]
[405315612,1770984640961,-500.0,0.00013698,2]
[405315613,1770984640971,-500.0,0.00013698,2]
[405315614,1770984640981,-539.55,0.00013698,2]
[405315615,1770984640991,-500.0,0.00013698,2]
[405315616,1770984641000,-539.55,0.00013698,2]
[405315617,1770984641010,-500.0,0.00013698,2]
[405315618,1770984641021,-539.55,0.00013698,2]
[405315619,1770984641030,-500.0,0.00013698,2]
[405315620,1770984641040,-539.55,0.00013698,2]
[405315621,1770984641050,-500.0,0.00013698,2]
[405315622,1770984641059,-539.55,0.00013698,2]
[405315623,1770984641069,-500.0,0.00013698,2]
[405315624,1770984641080,-539.55,0.00013698,2]
[405315625,1770984641089,-551.30997361,0.00013698,2]
[405315626,1770984641100,-539.55,0.00013698,2]
[405315627,1770984641118,-539.55,0.00013698,2]
[405315628,1770984641131,-539.55,0.00013698,2]
[405315629,1770984641148,-539.55,0.00013698,2]
[405315630,1770984641159,-539.55,0.00013698,2]
[405315631,1770984641169,-539.55,0.00013698,2]
[405315632,1770984641178,-539.55,0.00013698,2]
[405315633,1770984641188,-539.55,0.00013698,2]
[405315634,1770984641198,-539.55,0.00013698,2]
[405315635,1770984641207,-539.55,0.00013698,2]
[405315636,1770984641216,-539.55,0.00013698,2]
[405315637,1770984641225,-539.55,0.00013698,2]
[405315638,1770984641235,-539.55,0.00013698,2]
[405315639,1770984641245,-539.55,0.00013698,2]
[405315640,1770984641254,-539.55,0.00013698,2]
[405315641,1770984641263,-539.55,0.00013698,2]
[405315642,1770984641273,-539.55,0.00013698,2]
[405315643,1770984641283,-539.55770196,0.00013698,2]
[405315644,1770984641292,-500.0,0.00013698,2]
[405315645,1770984641302,-500.0,0.00013698,2]
[405315646,1770984641311,-500.0,0.00013698,2]
[405315647,1770984641320,-500.0,0.00013698,2]
[405315648,1770984641329,-500.0,0.00013698,2]
[405315649,1770984641339,-500.0,0.00013698,2]
[405315650,1770984641349,-500.0,0.00013698,2]
[405315651,1770984641360,-430.95470034,0.00013698,2]
[405315652,1770984641370,-500.0,0.00013698,2]
[405315653,1770984641381,-500.0,0.00013698,2]
[405315654,1770984641391,-500.0,0.00013698,2]
[405315655,1770984641400,-500.0,0.00013698,2]
[405315656,1770984641410,-500.0,0.00013698,2]
[405315657,1770984641420,-500.0,0.00013698,2]
[405315658,1770984641430,-500.0,0.00013698,2]
[405315659,1770984641440,-459.69931234,0.00013698,2]
[405315660,1770984641449,-500.0,0.00013699,2]
[405315661,1770984641458,-502.22718587,0.00013699,2]
[405315662,1770984641467,-500.0,0.00013699,2]
[405315663,1770984641476,-160.37994263,0.00013699,2]
[405315664,1770984641486,-500.0,0.00013699,2]
[405315665,1770984641495,-596.02960806,0.00013699,2]
[405315666,1770984641504,-500.0,0.00013699,2]
[405315667,1770984641514,-500.0,0.00013699,2]
[405315668,1770984641524,-500.0,0.00013699,2]
[405315669,1770984641533,-500.0,0.00013699,2]
[405315670,1770984641543,-1000.0,0.00013699,7]
[405315671,1770984641552,-500.0,0.00013699,2]
[405315672,1770984641562,-500.0,0.00013699,2]
[405315673,1770984641571,-500.0,0.00013699,2]
[405315674,1770984641580,-500.0,0.00013699,2]
[405315675,1770984641593,-502.01410517,0.00013699,2]
[405315676,1770984641602,-500.0,0.00013699,2]
[405315677,1770984641611,-500.0,0.00013699,2]
[405315678,1770984641621,-500.0,0.00013699,2]
[405315679,1770984641632,-500.0,0.00013699,2]
[405315680,1770984641643,-594.1463812,0.00013699,2]
[405315681,1770984641653,-161.5226786,0.00013699,2]
[405315682,1770984641664,-500.2976467,0.00013699,2]
[405315683,1770984641673,-377.55295707,0.00013699,2]
[405315684,1770984641683,-500.0,0.00013699,2]
[405315685,1770984641693,-500.0,0.00013699,2]
[405315686,1770984641703,-501.93985901,0.00013699,2]
[405315687,1770984641712,-13745.77,0.00013894,2]
[405315688,1770984641722,-992.57355052,0.00014247,2]
[405315689,1770984641731,-1000.0,0.00014247,2]
[405315690,1770984641741,-1000.0,0.00014247,2]
[405315691,1770984641751,-300.97860377,0.00014247,2]
[405315692,1770984641760,-689.48508618,0.00014247,2]
[405315693,1770984641770,-1005.92637205,0.00014247,2]
[405315694,1770984641780,-1000.0,0.00014247,2]
[405315695,1770984641789,-500.0,0.00014247,2]
[405315696,1770984641799,-1000.0,0.00014247,2]
[405315697,1770984641808,-1000.0,0.00014247,2]
[405315698,1770984641818,-1000.0,0.00014247,2]
[405315699,1770984641827,-1001.69367829,0.00014247,2]
[405315700,1770984641836,-1000.0,0.00014247,2]
[405315701,1770984641846,-1011.15532906,0.00014247,2]
[405315702,1770984641856,-895.51801597,0.00014247,2]
[405315703,1770984641866,-1000.0,0.00014247,2]
[405315704,1770984641876,-1030.73212688,0.00014247,2]
[405315705,1770984641886,-150.0,0.00014267,2]
[405315706,1770984641896,-160.0,0.00014286,2]
[405315707,1770984641905,-1000.0,0.00014343,2]
[405315708,1770984641915,-500.0,0.0001463,2]
[405315709,1770984641924,-9712.0,0.00014737,2]
[405315710,1770984641934,-1500.0,0.00014795,2]
[405315711,1770984641943,-1500.0,0.00014795,2]
[405315712,1770984641953,-939.8305345,0.00014795,2]
[405315713,1770984641962,-1516.46648451,0.00014795,2]
[405315714,1770984641973,-1500.0,0.00014795,2]
[405315715,1770984641983,-1219.10008095,0.00014795,2]
[405315716,1770984641993,-1500.0,0.00014795,2]
[405315717,1770984642003,-1001.25973348,0.00014795,2]
[405315718,1770984642013,-500.0,0.00014877,2]
[405315719,1770984642024,-500.0,0.00014939,2]
[405315720,1770984642033,-500.0,0.00014939,2]
[405315721,1770984642043,-500.0,0.00014939,2]
[405315722,1770984642053,-559.38615752,0.00014939,2]
[405315723,1770984642063,-250.0,0.00015,2]
[405315724,1770984642073,-10000.0,0.00015,2]
[405315725,1770984642082,-14681.88353983,0.0001521,2]
[405315726,1770984642091,-2000.0,0.00015342,2]
[405315727,1770984642100,-2008.47777759,0.00015342,2]
[405315728,1770984642110,-503.05497251,0.00015342,2]
[405315729,1770984642119,-2000.0,0.00015342,2]
[405315730,1770984642128,-222.32134383,0.00015502,2]
[405315731,1770984642139,-787.66016397,0.0001589,2]
[405315732,1770984642148,-460.3517219,0.0001589,2]
[405315733,1770984642157,-9999.99,0.00016116,2]
[405315734,1770984642167,-5731.75,0.00016116,2]
[405315735,1770984642176,-500.0,0.00016173,2]
[405315736,1770984642186,-500.0,0.00016173,2]
[405315737,1770984642195,-500.0,0.00016173,2]
[405315738,1770984642352,-159.19023522,0.00016339,2]
[405315739,1770984642386,-160.0,0.000164,3]
[405315740,1770984642396,-657.77,0.00016646,2]
[405315741,1770984642407,-460.18108091,0.00016721,2]
[405315742,1770984642416,-1000.0,0.00016721,2]
[405315743,1770984642426,-42929.0,0.000168,2]
[405315744,1770984642436,-864.588324,0.00016896,7]
[405315745,1770984642446,-2000.0,0.000169,2]
[405315746,1770984642457,-300.0,0.00017,2]
[405315747,1770984642467,-151.0,0.000171,2]
[405315748,1770984642478,-151.0,0.000171,2]
[405315749,1770984642488,-1500.0,0.00017268,2]
[405315750,1770984642498,-5531.0,0.000174,3]
[405315751,1770984642508,-500.0,0.00017726,2]
[405315752,1770984642518,-481.89542729,0.00017742,2]
[405315753,1770984642529,-481.89542728,0.00017742,2]
[405315754,1770984642540,-1065.71906943,0.0001777,2]
[405315755,1770984642550,-151.0,0.0001777,2]
[405315756,1770984642560,-222.534696,0.0001777,2]
[405315757,1770984642570,-500.0,0.00017808,2]
[405315758,1770984642579,-607.89395114,0.00017808,2]
[405315759,1770984642593,-607.89395114,0.00017808,2]
[405315760,1770984642603,-607.89395114,0.00017808,2]
[405315761,1770984642613,-607.89395114,0.00017808,2]
[405315762,1770984642623,-607.89395114,0.00017808,2]
[405315763,1770984642634,-607.89395114,0.00017808,2]
[405315764,1770984642643,-607.89395114,0.00017808,2]
[405315765,1770984642653,-607.89395114,0.00017808,2]
[405315766,1770984642664,-607.89395114,0.00017808,2]
[405315767,1770984642674,-607.89395114,0.00017808,2]
[405315768,1770984642684,-607.89395114,0.00017808,2]
[405315769,1770984642693,-607.89395114,0.00017808,2]
[405315770,1770984642703,-607.89395114,0.00017808,2]
[405315771,1770984642712,-607.89395114,0.00017808,2]
[405315772,1770984642722,-607.89395114,0.00017808,2]
[405315773,1770984642731,-607.89395114,0.00017808,2]
[405315774,1770984642741,-607.89395114,0.00017808,2]
[405315775,1770984642750,-607.89395114,0.00017808,2]
[405315776,1770984642760,-607.89395114,0.00017808,2]
[405315777,1770984642770,-607.89395114,0.00017808,2]
[405315778,1770984642779,-607.89395114,0.00017808,2]
[405315779,1770984642789,-800.0,0.00017808,2]
[405315780,1770984642799,-504.4856347,0.00017816,2]
[405315781,1770984642808,-2416.99224932,0.0001783,2]
[405315782,1770984642818,-500.0,0.00017863,2]
[405315783,1770984642828,-548033.8417411,0.0001787,2]
[405315784,1770984642838,-4806.2081209,0.0001787,2]
[405315785,1770984642848,-14418.6243628,0.0001787,2]
[405315786,1770984642859,-229.835666,0.0001787,2]
[405315787,1770984642868,-52632.1610477,0.0001787,2]
[405315788,1770984642878,-197.961281,0.0001787,2]
[405315789,1770984642887,-151.0,0.0001787,2]
[405315790,1770984642897,-164.535003,0.0001787,2]
[405315791,1770984642906,-10000.0,0.000179,2]
[405315792,1770984642915,-3300.0,0.000179,6]
[405315793,1770984642924,-5531.0,0.000179,5]
[405315794,1770984642934,-500.0,0.00017918,2]
[405315795,1770984642943,-500.0,0.00017945,2]
[405315796,1770984642954,-500.49095607,0.00017959,3]
[405315797,1770984642963,-500.0,0.00017972,2]
[405315798,1770984642972,-225.87883291,0.00017982,2]
[405315799,1770984642982,-151.0,0.00017997,2]
[405315801,1770984642991,-151.0,0.00017997,2]
[405315804,1770984643000,-300.0,0.00017999,2]
[405315806,1770984643010,-300.0,0.00017999,2]
[405315808,1770984643019,-919407.29119594,0.00018,2]
[405315810,1770984643044,-453.10284,0.00018,2]
[405315820,1770984643148,-616.0,0.00018,2]
[405315821,1770984643255,-286.63130078,0.00018,2]
[405315822,1770984643303,-3901695.15577695,0.00018,2]
[405315823,1770984643313,-200.0,0.00018,2]
[405315824,1770984643324,-200.0,0.00018,2]
[405315825,1770984643335,-1138.60702209,0.00018,2]
[405315826,1770984643345,-300.0,0.00018,2]
[405315827,1770984643356,-153.0,0.00018,2]
[405315828,1770984643367,-153.0,0.00018,2]
[405315829,1770984643377,-153.0,0.00018,2]
[405315830,1770984643389,-153.0,0.00018,2]
[405315831,1770984643401,-153.0,0.00018,2]
[405315832,1770984643413,-153.0,0.00018,2]
[405315833,1770984643422,-153.0,0.00018,2]
[405315834,1770984643434,-253.56791203,0.00018,2]
[405315835,1770984643445,-151.0,0.00018,2]
[405315836,1770984643456,-151.0,0.00018,2]
[405315837,1770984643467,-151.0,0.00018,2]
[405315838,1770984643478,-151.0,0.00018,2]
[405315839,1770984643488,-368.73036864,0.00018,2]
[405315840,1770984643498,-500.0,0.00018027,2]
[405315841,1770984643508,-500.0,0.00018082,2]
[405315842,1770984643518,-500.0,0.00018137,2]
[405315843,1770984643528,-200.0,0.0001818,2]
[405315844,1770984643539,-200.0,0.0001818,2]
[405315845,1770984643551,-481.89542729,0.00018186,2]
[405315846,1770984643570,-500.0,0.00018192,2]
[405315847,1770984643581,-500.0,0.00018246,2]
[405315848,1770984643604,-500.0,0.00018301,2]
[405315849,1770984643618,-200.0,0.00018319,2]
[405315850,1770984643628,-500.0,0.00018356,2]
[405315851,1770984643640,-200.0,0.00018362,2]
[405315852,1770984643655,-200.0,0.00018362,2]
[405315853,1770984643668,-268.21,0.0001837,2]
[405315854,1770984643678,-159.19023522,0.00018381,2]
[405315855,1770984643690,-167.83,0.00018385,2]
[405315856,1770984643706,-500.0,0.00018411,2]
[405315857,1770984643719,-167.83842784,0.00018411,2]
[405315858,1770984643732,-500.0,0.00018466,2]
[405315859,1770984643743,-500.0,0.00018466,2]
[405315860,1770984643756,-162.08,0.00018494,2]
[405315861,1770984643769,-500.0,0.0001852,2]
[405315862,1770984643781,-200.0,0.00018545,2]
[405315863,1770984643794,-200.0,0.00018545,2]
[405315864,1770984643809,-500.0,0.00018575,2]
[405315865,1770984643822,-481.89542729,0.00018629,2]